fUSD/lending_fUSD_20240222
["ID","MTS","AMOUNT","RATE_DAILY","PERIOD"]
[314911016,1708635066217,-500.0,0.0003315,4]
[314911017,1708635066227,-500.0,0.0003315,4]
[314911018,1708635066236,-514.85,0.0003315,4]
[314911019,1708635066246,-748.94,0.0003315,4]
[314911020,1708635066256,-500.0,0.0003315,4]
[314911021,1708635066266,-500.0,0.0003315,4]
[314911022,1708635066277,-335.24298957,0.0003315,4]
[314911023,1708635066327,-164.75701043,0.0003315,4]
[314911024,1708635066336,-497.85598301,0.0003315,4]
[314911025,1708635066346,-500.0,0.0003315,4]
[314911026,1708635066356,-424.27943807,0.0003315,4]
[314911027,1708635066415,-75.72056193,0.0003315,4]
[314911028,1708635066425,-500.0,0.0003315,4]
[314911029,1708635066434,-500.0,0.0003315,4]
[314911030,1708635066444,-500.0,0.0003315,4]
[314911031,1708635066453,-500.0,0.0003315,4]
[314911032,1708635066464,-500.0,0.0003315,4]
[314911033,1708635066474,-19.07943807,0.0003315,4]
[314911034,1708635067598,-150.01,0.00031909,2]
[314911035,1708635067608,-596.34338229,0.00032188,2]
[314911036,1708635067620,-442.65661771,0.00032188,2]
[314911037,1708635067630,-598.21,0.00032876,2]
[314911038,1708635067639,-500.0,0.00032876,2]
[314911039,1708635067650,-500.0,0.00032876,2]
[314911040,1708635067659,-306.60097251,0.00032876,2]
[314911041,1708635067671,-193.39902749,0.00032876,2]
[314911042,1708635067747,-538.90119025,0.00032989,2]
[314911043,1708635067762,-500.0,0.00033013,4]
[314911044,1708635067772,-480.92056193,0.0003315,4]
[314911045,1708635067781,-500.0,0.0003315,2]
[314911046,1708635067791,-500.0,0.0003315,4]
[314911047,1708635067802,-840.01,0.0003315,4]
[314911048,1708635067811,-500.0,0.0003315,4]
[314911049,1708635067821,-500.0,0.0003315,4]
[314911050,1708635067831,-500.0,0.0003315,4]
[314911051,1708635067841,-500.0,0.0003315,4]
[314911052,1708635067852,-500.0,0.0003315,4]
[314911053,1708635067862,-500.0,0.0003315,4]
[314911054,1708635067873,-612.93,0.0003315,4]
[314911055,1708635067883,-500.0,0.0003315,4]
[314911056,1708635067893,-500.0,0.0003315,4]
[314911057,1708635067904,-818.33,0.0003315,4]
[314911058,1708635067914,-500.0,0.0003315,4]
[314911059,1708635067924,-585.54,0.0003315,4]
[314911060,1708635067934,-500.0,0.0003315,4]
[314911061,1708635067944,-500.0,0.0003315,4]
[314911062,1708635067954,-773.87,0.0003315,4]
[314911063,1708635067963,-712.63,0.0003315,4]
[314911064,1708635067973,-500.0,0.0003315,4]
[314911065,1708635067983,-538.82,0.0003315,4]
[314911066,1708635067992,-518.63,0.0003315,4]
[314911067,1708635068002,-500.0,0.0003315,4]
[314911068,1708635068011,-500.0,0.0003315,4]
[314911069,1708635068021,-500.0,0.0003315,4]
[314911070,1708635068031,-500.0,0.0003315,4]
[314911071,1708635068039,-749.66,0.0003315,4]
[314911072,1708635068047,-500.0,0.0003315,4]
[314911073,1708635068057,-500.0,0.0003315,4]
[314911074,1708635068066,-500.0,0.0003315,4]
[314911075,1708635068076,-500.0,0.0003315,4]
[314911076,1708635068085,-500.0,0.0003315,4]
[314911077,1708635068095,-543.92,0.0003315,4]
[314911078,1708635068105,-500.0,0.0003315,4]
[314911079,1708635068115,-500.0,0.0003315,4]
[314911080,1708635068124,-500.0,0.0003315,4]
[314911081,1708635068134,-500.0,0.0003315,4]
[314911082,1708635068143,-500.0,0.0003315,4]
[314911083,1708635068154,-500.0,0.0003315,4]
[314911084,1708635068163,-500.0,0.0003315,4]
[314911085,1708635068173,-500.0,0.0003315,4]
[314911086,1708635068183,-500.0,0.0003315,4]
[314911087,1708635068193,-500.0,0.0003315,4]
[314911088,1708635068202,-500.0,0.0003315,4]
[314911089,1708635068212,-542.35,0.0003315,4]
[314911090,1708635068221,-500.0,0.0003315,4]
[314911091,1708635068230,-500.0,0.0003315,4]
[314911092,1708635068240,-602.91,0.0003315,4]
[314911093,1708635068249,-500.0,0.0003315,4]
[314911094,1708635068258,-500.0,0.0003315,4]
[314911095,1708635068267,-500.0,0.0003315,4]
[314911096,1708635068277,-540.84,0.0003315,4]
[314911097,1708635068287,-500.0,0.0003315,4]
[314911098,1708635068296,-500.0,0.0003315,4]
[314911099,1708635068305,-500.0,0.0003315,4]
[314911100,1708635068314,-500.0,0.0003315,4]
[314911101,1708635068323,-500.0,0.0003315,4]
[314911102,1708635068332,-500.0,0.0003315,4]
[314911103,1708635068341,-500.0,0.0003315,4]
[314911104,1708635068350,-500.0,0.0003315,4]
[314911105,1708635068359,-500.0,0.0003315,4]
[314911106,1708635068369,-713.25,0.0003315,4]
[314911107,1708635068378,-500.0,0.0003315,4]
[314911108,1708635068387,-500.0,0.0003315,4]
[314911109,1708635068397,-500.0,0.0003315,4]
[314911110,1708635068406,-500.0,0.0003315,4]
[314911111,1708635068416,-500.0,0.0003315,4]
[314911112,1708635068425,-500.0,0.0003315,4]
[314911113,1708635068434,-500.0,0.0003315,4]
[314911114,1708635068443,-500.0,0.0003315,4]
[314911115,1708635068453,-1836.57,0.0003315,4]
[314911116,1708635068462,-573.67,0.0003315,4]
[314911117,1708635068473,-500.0,0.0003315,4]
[314911118,1708635068482,-532.04,0.0003315,4]
[314911119,1708635068491,-606.69,0.0003315,4]
[314911120,1708635068500,-500.0,0.0003315,4]
[314911121,1708635068509,-500.0,0.0003315,4]
[314911122,1708635068519,-540.07,0.0003315,4]
[314911123,1708635068528,-500.0,0.0003315,4]
[314911124,1708635068537,-500.0,0.0003315,4]
[314911125,1708635068547,-500.0,0.0003315,4]
[314911126,1708635068556,-500.0,0.0003315,4]
[314911127,1708635068566,-500.0,0.0003315,4]
[314911128,1708635068576,-500.0,0.0003315,4]
[314911129,1708635068585,-715.77,0.0003315,4]
[314911130,1708635068595,-500.0,0.0003315,4]
[314911131,1708635068604,-500.0,0.0003315,4]
[314911132,1708635068614,-500.0,0.0003315,4]
[314911133,1708635068623,-500.0,0.0003315,4]
[314911134,1708635068633,-294.96,0.0003315,4]
[314911135,1708635068642,-500.0,0.0003315,4]
[314911136,1708635068653,-500.0,0.0003315,4]
[314911137,1708635068662,-500.0,0.0003315,4]
[314911138,1708635068674,-156.22,0.0003315,4]
[314911139,1708635068683,-500.0,0.0003315,4]
[314911140,1708635068692,-500.0,0.0003315,4]
[314911141,1708635068709,-500.0,0.0003315,4]
[314911142,1708635068721,-500.0,0.0003315,4]
[314911143,1708635068734,-519.14,0.0003315,4]
[314911144,1708635068743,-500.0,0.0003315,4]
[314911145,1708635068754,-500.0,0.0003315,4]
[314911146,1708635068778,-500.0,0.0003315,4]
[314911147,1708635068803,-503.74,0.0003315,4]
[314911148,1708635068826,-500.0,0.0003315,4]
[314911149,1708635068838,-500.0,0.0003315,4]
[314911150,1708635068851,-500.0,0.0003315,4]
[314911151,1708635068861,-500.0,0.0003315,4]
[314911152,1708635068883,-610.41647288,0.0003315,4]
[314911153,1708635068894,-151.0,0.0003315,7]
[314911154,1708635068907,-542.16,0.0003315,4]
[314911155,1708635068918,-500.0,0.0003315,4]
[314911156,1708635068929,-858.44,0.0003315,4]
[314911157,1708635068938,-500.0,0.0003315,14]
[314911158,1708635068948,-500.0,0.0003315,4]
[314911159,1708635068957,-500.0,0.0003315,4]
[314911160,1708635068975,-644.32396696,0.0003315,4]
[314911161,1708635068985,-500.0,0.0003315,4]
[314911162,1708635068995,-621.97,0.0003315,4]
[314911163,1708635069004,-500.0,0.0003315,4]
[314911164,1708635069014,-500.0,0.0003315,4]
[314911165,1708635069023,-500.0,0.0003315,4]
[314911166,1708635069035,-500.0,0.0003315,4]
[314911167,1708635069044,-627.87,0.0003315,4]
[314911168,1708635069053,-500.0,0.0003315,4]
[314911169,1708635069064,-500.0,0.0003315,4]
[314911170,1708635069073,-500.0,0.0003315,4]
[314911171,1708635069082,-151.0,0.0003315,2]
[314911172,1708635069092,-2002.64,0.0003315,4]
[314911173,1708635069102,-2266.41,0.0003315,4]
[314911174,1708635069111,-500.0,0.0003315,4]
[314911175,1708635069121,-500.0,0.0003315,4]
[314911176,1708635069130,-500.0,0.0003315,4]
[314911177,1708635069140,-500.0,0.0003315,4]
[314911178,1708635069151,-500.0,0.0003315,4]
[314911179,1708635069160,-500.0,0.0003315,4]
[314911180,1708635069170,-500.0,0.0003315,4]
[314911181,1708635069180,-500.0,0.0003315,4]
[314911182,1708635069190,-947.29,0.0003315,4]
[314911183,1708635069200,-500.0,0.0003315,4]
[314911184,1708635069210,-1981.38,0.0003315,4]
[314911185,1708635069220,-500.0,0.0003315,4]
[314911186,1708635069229,-500.0,0.0003315,4]
[314911187,1708635069239,-500.0,0.0003315,4]
[314911188,1708635069258,-500.0,0.0003315,4]
[314911189,1708635069268,-500.0,0.0003315,4]
[314911190,1708635069286,-500.0,0.0003315,4]
[314911191,1708635069295,-500.0,0.0003315,4]
[314911192,1708635069304,-500.0,0.0003315,4]
[314911193,1708635069315,-4201.14,0.0003315,4]
[314911194,1708635069330,-500.0,0.0003315,4]
[314911195,1708635069339,-6347.11,0.0003315,4]
[314911196,1708635069352,-151.0,0.0003315,7]
[314911197,1708635069371,-500.0,0.0003315,4]
[314911198,1708635069381,-500.0,0.0003315,4]
[314911199,1708635069391,-711.96,0.0003315,4]
[314911200,1708635069403,-510.45,0.0003315,4]
[314911201,1708635069413,-611.83,0.0003315,4]
[314911202,1708635069438,-500.0,0.0003315,4]
[314911203,1708635069448,-500.0,0.0003315,4]
[314911204,1708635069458,-500.0,0.0003315,4]
[314911205,1708635069468,-500.0,0.0003315,4]
[314911206,1708635069478,-295.93357855,0.0003315,4]
[314911207,1708635069488,-500.0,0.0003315,4]
[314911208,1708635069498,-500.0,0.0003315,4]
[314911209,1708635069508,-500.0,0.0003315,4]
[314911210,1708635069520,-4462.31,0.0003315,4]
[314911211,1708635069530,-3872.09,0.0003315,4]
[314911212,1708635069540,-500.0,0.0003315,4]
[314911213,1708635069551,-500.0,0.0003315,4]
[314911214,1708635069561,-500.0,0.0003315,4]
[314911215,1708635069583,-500.0,0.0003315,4]
[314911216,1708635069592,-500.0,0.0003315,4]
[314911217,1708635069601,-500.0,0.0003315,4]
[314911218,1708635069611,-500.0,0.0003315,4]
[314911219,1708635069622,-2138.94,0.0003315,4]
[314911220,1708635069631,-500.0,0.0003315,4]
[314911221,1708635069641,-500.0,0.0003315,4]
[314911222,1708635069651,-677.28,0.0003315,4]
[314911223,1708635069661,-500.0,0.0003315,4]
[314911224,1708635069680,-500.0,0.0003315,4]
[314911225,1708635069689,-500.0,0.0003315,4]
[314911226,1708635069711,-500.0,0.0003315,4]
[314911227,1708635069722,-500.0,0.0003315,4]
[314911228,1708635069733,-981.71,0.0003315,4]
[314911229,1708635069743,-500.0,0.0003315,4]
[314911230,1708635069757,-4200.89,0.0003315,4]
[314911231,1708635069775,-511.16,0.0003315,4]
[314911232,1708635069794,-500.0,0.0003315,4]
[314911233,1708635069805,-500.0,0.0003315,4]
[314911234,1708635069814,-500.0,0.0003315,4]
[314911235,1708635069824,-3628.37,0.0003315,4]
[314911236,1708635069834,-540.9,0.0003315,4]
[314911237,1708635069844,-500.0,0.0003315,4]
[314911238,1708635069854,-500.0,0.0003315,4]
[314911239,1708635069864,-500.0,0.0003315,4]
[314911240,1708635069874,-500.0,0.0003315,4]
[314911241,1708635069883,-541.66,0.0003315,4]
[314911242,1708635069893,-500.0,0.0003315,4]
[314911243,1708635069905,-767.41,0.0003315,4]
[314911244,1708635069915,-15076.9,0.0003315,4]
[314911245,1708635069924,-639.34,0.0003315,4]
[314911246,1708635069934,-500.0,0.0003315,4]
[314911247,1708635069943,-4376.47,0.0003315,4]
[314911248,1708635069953,-574.73,0.0003315,4]
[314911249,1708635069962,-862.76,0.0003315,4]
[314911250,1708635069972,-500.0,0.0003315,4]
[314911251,1708635069983,-277.787395,0.0003315,7]
[314911252,1708635069992,-500.0,0.0003315,4]
[314911253,1708635070001,-500.0,0.0003315,4]
[314911254,1708635070011,-500.0,0.0003315,4]
[314911255,1708635070020,-500.0,0.0003315,4]
[314911256,1708635070030,-500.0,0.0003315,4]
[314911257,1708635070040,-500.0,0.0003315,4]
[314911258,1708635070049,-1671.37,0.0003315,4]
[314911259,1708635070059,-1593.07,0.0003315,4]
[314911260,1708635070068,-500.0,0.0003315,4]
[314911261,1708635070077,-500.0,0.0003315,4]
[314911262,1708635070087,-2257.01,0.0003315,4]
[314911263,1708635070097,-500.0,0.0003315,4]
[314911264,1708635070106,-401.94717723,0.0003315,4]
[314911265,1708635070116,-672.93,0.0003315,4]
[314911266,1708635070125,-5164.55,0.0003315,4]
[314911267,1708635070135,-1138.05,0.0003315,4]
[314911268,1708635070144,-500.0,0.0003315,4]
[314911269,1708635070157,-500.0,0.0003315,4]
[314911270,1708635070167,-768.2,0.0003315,4]
[314911271,1708635070177,-1297.81,0.0003315,4]
[314911272,1708635070186,-522.42,0.0003315,4]
[314911273,1708635070195,-2954.83,0.0003315,4]
[314911274,1708635070205,-1050.5,0.0003315,4]
[314911275,1708635070214,-500.0,0.0003315,4]
[314911276,1708635070224,-500.0,0.0003315,4]
[314911277,1708635070233,-804.12,0.0003315,4]
[314911278,1708635070243,-500.0,0.0003315,4]
[314911279,1708635070252,-1505.96,0.0003315,4]
[314911280,1708635070262,-1239.84,0.0003315,4]
[314911281,1708635070272,-2103.85,0.0003315,4]
[314911282,1708635070282,-1535.88,0.0003315,4]
[314911283,1708635070292,-500.0,0.0003315,4]
[314911284,1708635070301,-500.0,0.0003315,4]
[314911285,1708635070310,-2700.5,0.0003315,4]
[314911286,1708635070320,-500.0,0.0003315,4]
[314911287,1708635070329,-500.0,0.0003315,4]
[314911288,1708635070339,-500.0,0.0003315,4]
[314911289,1708635070349,-500.0,0.0003315,4]
[314911290,1708635070358,-659.64,0.0003315,4]
[314911291,1708635070368,-778.29,0.0003315,4]
[314911292,1708635070378,-500.0,0.0003315,4]
[314911293,1708635070387,-12873.14,0.0003315,4]
[314911294,1708635070399,-799.18,0.0003315,4]
[314911295,1708635070408,-4792.19,0.0003315,4]
[314911296,1708635070418,-500.0,0.0003315,4]
[314911297,1708635070427,-591.94,0.0003315,4]
[314911298,1708635070437,-6786.26,0.0003315,4]
[314911299,1708635070447,-576.65,0.0003315,4]
[314911300,1708635070457,-1365.5,0.0003315,4]
[314911301,1708635070468,-500.0,0.0003315,4]
[314911302,1708635070477,-5441.22,0.0003315,4]
[314911303,1708635070487,-500.0,0.0003315,4]
[314911304,1708635070496,-500.0,0.0003315,4]
[314911305,1708635070505,-673.19,0.0003315,4]
[314911306,1708635070515,-500.0,0.0003315,4]
[314911307,1708635070525,-8303.93,0.0003315,4]
[314911308,1708635070535,-500.0,0.0003315,4]
[314911309,1708635070544,-500.0,0.0003315,4]
[314911310,1708635070553,-649.73,0.0003315,4]
[314911311,1708635070562,-516.06,0.0003315,4]
[314911312,1708635070573,-817.7,0.0003315,4]
[314911313,1708635070583,-789.8,0.0003315,4]
[314911314,1708635070593,-1061.83,0.0003315,4]
[314911315,1708635070603,-500.0,0.0003315,2]
[314911316,1708635070612,-500.0,0.0003315,4]
[314911317,1708635070622,-850.77,0.0003315,4]
[314911318,1708635070632,-500.0,0.0003315,4]
[314911319,1708635070641,-580.17800693,0.0003315,4]
[314911320,1708635070652,-939.84,0.0003315,4]
[314911321,1708635070661,-1214.17,0.0003315,4]
[314911322,1708635070670,-500.0,0.0003315,4]
[314911323,1708635070679,-1088.9,0.0003315,4]
[314911324,1708635070689,-500.0,0.0003315,4]
[314911325,1708635070698,-500.0,0.0003315,4]
[314911326,1708635070707,-3312.71,0.0003315,4]
[314911327,1708635070717,-659.74,0.0003315,4]
[314911328,1708635070727,-174.15234,0.0003315,7]
[314911329,1708635070737,-586.63,0.0003315,4]
[314911330,1708635070748,-500.0,0.0003315,4]
[314911331,1708635070763,-228.1004981,0.0003315,4]
[314911332,1708635070773,-1706.54,0.0003315,4]
[314911333,1708635070783,-5312.69,0.0003315,4]
[314911334,1708635070792,-500.0,0.0003315,4]
[314911335,1708635070803,-500.0,0.0003315,4]
[314911336,1708635070812,-500.0,0.0003315,4]
[314911337,1708635070822,-1201.84,0.0003315,4]
[314911338,1708635070831,-500.0,0.0003315,4]
[314911339,1708635070841,-2400.54,0.0003315,4]
[314911340,1708635070852,-500.0,0.0003315,4]
[314911341,1708635070862,-4219.99,0.0003315,4]
[314911342,1708635070871,-692.82,0.0003315,4]
[314911343,1708635070880,-542.69,0.0003315,4]
[314911344,1708635070890,-500.0,0.0003315,4]
[314911345,1708635070900,-500.0,0.0003315,4]
[314911346,1708635070909,-1000.0,0.0003315,7]
[314911347,1708635070918,-1116.05,0.0003315,4]
[314911348,1708635070927,-1265.81,0.0003315,4]
[314911349,1708635070936,-596.2,0.0003315,4]
[314911350,1708635070946,-500.0,0.0003315,4]
[314911351,1708635070955,-500.0,0.0003315,4]
[314911352,1708635070964,-500.0,0.0003315,4]
[314911353,1708635070974,-1110.29,0.0003315,4]
[314911354,1708635070983,-652.05,0.0003315,4]
[314911355,1708635070993,-500.0,0.0003315,4]
[314911356,1708635071002,-518.21,0.0003315,4]
[314911357,1708635071011,-500.0,0.0003315,4]
[314911358,1708635071020,-783.92,0.0003315,4]
[314911359,1708635071030,-500.0,0.0003315,4]
[314911360,1708635071039,-5079.26,0.0003315,4]
[314911361,1708635071048,-612.94,0.0003315,4]
[314911362,1708635071057,-627.01,0.0003315,4]
[314911363,1708635071066,-500.0,0.0003315,4]
[314911364,1708635071076,-500.0,0.0003315,4]
[314911365,1708635071085,-500.0,0.0003315,4]
[314911366,1708635071094,-1600.52,0.0003315,4]
[314911367,1708635071104,-513.92,0.0003315,4]
[314911368,1708635071113,-563.23,0.0003315,4]
[314911369,1708635071122,-3754.85,0.0003315,4]
[314911370,1708635071131,-500.0,0.0003315,4]
[314911371,1708635071141,-500.0,0.0003315,4]
[314911372,1708635071152,-500.0,0.0003315,4]
[314911373,1708635071161,-542.52,0.0003315,4]
[314911374,1708635071171,-500.0,0.0003315,4]
[314911375,1708635071180,-500.0,0.0003315,4]
[314911376,1708635071189,-564.21,0.0003315,4]
[314911377,1708635071198,-500.0,0.0003315,4]
[314911378,1708635071207,-500.0,0.0003315,4]
[314911379,1708635071216,-1073.29,0.0003315,4]
[314911380,1708635071225,-500.0,0.0003315,4]
[314911381,1708635071234,-528.5,0.0003315,4]
[314911382,1708635071243,-1564.63,0.0003315,4]
[314911383,1708635071253,-1186.11,0.0003315,4]
[314911384,1708635071262,-500.0,0.0003315,4]
[314911385,1708635071271,-500.0,0.0003315,4]
[314911386,1708635071280,-500.0,0.0003315,4]
[314911387,1708635071289,-500.0,0.0003315,4]
[314911388,1708635071299,-660.46,0.0003315,4]
[314911389,1708635071308,-711.07,0.0003315,4]
[314911390,1708635071318,-786.48,0.0003315,4]
[314911391,1708635071327,-606.92,0.0003315,4]
[314911392,1708635071336,-500.0,0.0003315,4]
[314911393,1708635071346,-556.48,0.0003315,4]
[314911394,1708635071354,-648.51,0.0003315,4]
[314911395,1708635071364,-500.0,0.0003315,4]
[314911396,1708635071374,-1225.73,0.0003315,4]
[314911397,1708635071383,-951.04,0.0003315,4]
[314911398,1708635071392,-9061.28,0.0003315,4]
[314911399,1708635071402,-500.0,0.0003315,4]
[314911400,1708635071411,-500.0,0.0003315,4]
[314911401,1708635071421,-500.0,0.0003315,4]
[314911402,1708635071430,-151.0,0.0003315,7]
[314911403,1708635071439,-707.0,0.0003315,4]
[314911404,1708635071448,-151.0,0.0003315,7]
[314911405,1708635071458,-500.0,0.0003315,4]
[314911406,1708635071467,-3571.58,0.0003315,4]
[314911407,1708635071476,-500.0,0.0003315,4]
[314911408,1708635071485,-500.0,0.0003315,4]
[314911409,1708635071494,-1462.09,0.0003315,4]
[314911410,1708635071504,-586.07,0.0003315,4]
[314911411,1708635071513,-500.0,0.0003315,4]
[314911412,1708635071522,-769.27,0.0003315,4]
[314911413,1708635071531,-500.0,0.0003315,4]
[314911414,1708635071540,-2191.4,0.0003315,4]
[314911415,1708635071549,-500.0,0.0003315,4]
[314911416,1708635071559,-500.0,0.0003315,4]
[314911417,1708635071568,-500.0,0.0003315,4]
[314911418,1708635071578,-500.0,0.0003315,4]
[314911419,1708635071587,-500.0,0.0003315,4]
[314911420,1708635071597,-705.27,0.0003315,4]
[314911421,1708635071607,-3622.53,0.0003315,4]
[314911422,1708635071616,-500.0,0.0003315,4]
[314911423,1708635071626,-649.79,0.0003315,4]
[314911424,1708635071636,-500.0,0.0003315,4]
[314911425,1708635071645,-1718.53,0.0003315,4]
[314911426,1708635071657,-7809.56,0.0003315,4]
[314911427,1708635071666,-386.65093025,0.0003315,4]
[314911428,1708635071676,-500.0,0.0003315,4]
[314911429,1708635071685,-562.1543656,0.0003315,4]
[314911430,1708635071695,-500.0,0.0003315,4]
[314911431,1708635071704,-500.0,0.0003315,4]
[314911432,1708635071714,-663.66,0.0003315,4]
[314911433,1708635071723,-500.0,0.0003315,4]
[314911434,1708635071733,-500.0,0.0003315,4]
[314911435,1708635071742,-863.66,0.0003315,4]
[314911436,1708635071757,-565.87,0.0003315,4]
[314911437,1708635071766,-822.21,0.0003315,4]
[314911438,1708635071775,-500.0,0.0003315,4]
[314911439,1708635071787,-500.0,0.0003315,4]
[314911440,1708635071796,-596.29,0.0003315,4]
[314911441,1708635071806,-621.0,0.0003315,4]
[314911442,1708635071815,-1374.74,0.0003315,4]
[314911443,1708635071825,-500.0,0.0003315,4]
[314911444,1708635071836,-500.0,0.0003315,4]
[314911445,1708635071847,-500.0,0.0003315,4]
[314911446,1708635071857,-500.0,0.0003315,4]
[314911447,1708635071868,-500.0,0.0003315,4]
[314911448,1708635071878,-500.0,0.0003315,4]
[314911449,1708635071888,-3131.59,0.0003315,4]
[314911450,1708635071899,-500.0,0.0003315,4]
[314911451,1708635071909,-1147.26,0.0003315,4]
[314911452,1708635071920,-677.08,0.0003315,4]
[314911453,1708635071930,-3274.02,0.0003315,4]
[314911454,1708635071940,-500.0,0.0003315,4]
[314911455,1708635071950,-1054.45,0.0003315,4]
[314911456,1708635071960,-999.49,0.0003315,4]
[314911457,1708635071971,-500.0,0.0003315,4]
[314911458,1708635071981,-500.0,0.0003315,4]
[314911459,1708635071991,-500.0,0.0003315,4]
[314911460,1708635072001,-500.0,0.0003315,4]
[314911461,1708635072011,-866.0,0.0003315,4]
[314911462,1708635072020,-1560.01,0.0003315,4]
[314911463,1708635072031,-865.21,0.0003315,4]
[314911464,1708635072041,-500.0,0.0003315,4]
[314911465,1708635072211,-500.0,0.0003315,4]
[314911466,1708635072224,-673.3,0.0003315,4]
[314911467,1708635072235,-500.0,0.0003315,4]
[314911468,1708635072244,-500.0,0.0003315,4]
[314911469,1708635072254,-500.0,0.0003315,4]
[314911470,1708635072263,-619.0,0.0003315,4]
[314911471,1708635072273,-1829.04,0.0003315,4]
[314911472,1708635072282,-1284.61,0.0003315,4]
[314911473,1708635072292,-552.59,0.0003315,4]
[314911474,1708635072302,-1010.16,0.0003315,4]
[314911475,1708635072311,-500.0,0.0003315,4]
[314911476,1708635072321,-503.87,0.0003315,4]
[314911477,1708635072331,-1466.13,0.0003315,4]
[314911478,1708635072340,-770.69,0.0003315,4]
[314911479,1708635072350,-500.0,0.0003315,4]
[314911480,1708635072359,-1490.17,0.0003315,2]
[314911481,1708635072369,-646.378249,0.0003315,7]
[314911482,1708635072379,-646.378249,0.0003315,7]
[314911483,1708635072389,-507.34,0.0003315,4]
[314911484,1708635072401,-237.66,0.0003315,4]
[314911485,1708635072411,-646.378249,0.0003315,7]
[314911486,1708635072421,-646.378246,0.0003315,7]
[314911487,1708635072431,-157.984588,0.0003315,7]
[314911488,1708635072441,-157.984588,0.0003315,7]
[314911489,1708635072452,-1118.23,0.0003315,4]
[314911490,1708635072462,-157.984588,0.0003315,7]
[314911491,1708635072473,-500.0,0.0003315,4]
[314911492,1708635072484,-157.984594,0.0003315,7]
[314911493,1708635072495,-454.68172111,0.00033151,2]
[314911494,1708635072506,-188.1695184,0.00033151,2]
[314911495,1708635072517,-4236.08495067,0.00033151,2]
[314911496,1708635072528,-775.3593434,0.00033151,2]
[314911497,1708635072538,-577.0,0.00033151,2]
[314911498,1708635072550,-151.0,0.00033169,120]
[314911499,1708635072561,-152.0,0.00033216,4]
[314911500,1708635072571,-815.94826,0.0003322,2]
[314911501,1708635072582,-151.0,0.00033225,2]
[314911502,1708635072592,-157.0,0.00033244,2]
[314911503,1708635072603,-151.89,0.00033247,2]
[314911504,1708635072614,-151.022305,0.00033248,2]
[314911505,1708635072625,-151.022305,0.00033248,2]
[314911506,1708635072637,-151.022305,0.00033248,2]
[314911507,1708635072651,-151.022305,0.00033248,2]
[314911508,1708635072662,-151.022305,0.00033248,2]
[314911509,1708635072673,-151.022305,0.00033248,2]
[314911510,1708635072685,-151.022305,0.00033248,2]
[314911511,1708635072695,-151.022305,0.00033248,2]
[314911512,1708635072704,-532.84765016,0.00033287,4]
[314911513,1708635072714,-500.0,0.00033287,4]
[314911514,1708635072723,-500.0,0.00033287,4]
[314911515,1708635072732,-500.0,0.00033287,4]